{"text_format":"1","workbook":"xlsx","n_sheets":5,"sheets":["RAND","RANDBETWEEN","RANDARRAY","Analysis ToolPak","VBA"],"not_rendered":{"charts":0,"images":0,"macros":1,"external_links":0,"defined_names":0,"comments":0,"pivot_tables":0},"unopened":[],"bounds":{"document_bytes":16777216,"sheet_cells":100000,"rows_first":2000,"rows_last":500,"rows_between":2000,"halvings":0,"cell_chars":16384,"cell_head_chars":4096},"cells_cut":0,"cells_raw":0,"read":"whole","date_system":"1900"}

{"sheet":"RAND","index":0,"n_rows":10,"n_cols":2,"rows_kept":10,"cut":false,"hidden":false,"merged":[]}
[]
[null,"Using RAND Function"]
[]
[null,"Random Numbers"]
[null,{"$f":"ROUND(RAND()*(100-10)+10,0)","v":86}]
[null,{"$f":"ROUND(RAND()*(100-10)+10,0)","v":79}]
[null,31]
[null,87]
[null,13]
[null,95]

{"sheet":"RANDBETWEEN","index":1,"n_rows":10,"n_cols":2,"rows_kept":10,"cut":false,"hidden":false,"merged":[]}
[]
[null,"Using RANDBETWEEN Function"]
[]
[null,"Random Numbers"]
[null,{"$f":"RANDBETWEEN(50,100)","v":57}]
[null,{"$f":"RANDBETWEEN(50,100)","v":99}]
[null,79]
[null,79]
[null,81]
[null,51]

{"sheet":"RANDARRAY","index":2,"n_rows":10,"n_cols":3,"rows_kept":10,"cut":false,"hidden":false,"merged":[[1,1,1,2],[3,1,3,2]]}
[]
[null,"Using RANDARRAY Function"]
[]
[null,"Random Numbers"]
[null,{"$f":"_xlfn.RANDARRAY(6,2)","v":0.78494106329048074},0.59054762320165732]
[null,0.90547793992569048,4.795468930922997E-2]
[null,0.17546714364291316,0.80012075463938115]
[null,0.90073840513170689,0.16591441452670974]
[null,0.20398650716937938,0.93045151737521348]
[null,0.64002504851522546,8.9852144894095654E-2]

{"sheet":"Analysis ToolPak","index":3,"n_rows":10,"n_cols":3,"rows_kept":10,"cut":false,"hidden":false,"merged":[[1,1,1,2],[3,1,3,2]]}
[]
[null,"Using Analysis Tools Add-Ins"]
[]
[null,"Random Numbers"]
[null,22.268440809350871,40.751670888393811]
[null,45.796990874965665,38.296761986144595]
[null,10.526139103366191,26.73879207739494]
[null,13.122653889584033,27.717825861384931]
[null,46.270638142033143,32.874233222449412]
[null,38.444471572008425,29.083834345530562]

{"sheet":"VBA","index":4,"n_rows":50,"n_cols":20,"rows_kept":50,"cut":false,"hidden":false,"merged":[]}
[]
[null,"Using VBA Code"]
[]
[null,"Random Numbers"]
[]
[]
[]
[]
[]
[]
[]
[]
[]
[]
[]
[]
[]
[]
[]
[null,null,null,null,null,null,null,null,null,null,null,null,null,null,null,null,null,null,null,33]
[null,null,null,null,null,null,null,null,null,null,null,null,null,null,null,null,null,null,null,41]
[null,null,null,null,null,null,null,null,null,null,null,null,null,null,null,null,null,null,null,22]
[null,null,null,null,null,null,null,null,null,null,null,null,null,null,null,null,null,null,null,43]
[null,null,null,null,null,null,null,null,null,null,null,null,null,null,null,null,null,null,null,41]
[null,null,null,null,null,null,null,null,null,null,null,null,null,null,null,null,null,null,null,35]
[null,null,null,null,null,null,null,null,null,null,null,null,null,null,null,null,null,null,null,25]
[null,null,null,null,null,null,null,null,null,null,null,null,null,null,null,null,null,null,null,27]
[null,null,null,null,null,null,null,null,null,null,null,null,null,null,null,null,null,null,null,30]
[null,null,null,null,null,null,null,null,null,null,null,null,null,null,null,null,null,null,null,44]
[null,null,null,null,null,null,null,null,null,null,null,null,null,null,null,null,null,null,null,22]
[null,null,null,null,null,null,null,null,null,null,null,null,null,null,null,null,null,null,null,36]
[null,null,null,null,null,null,null,null,null,null,null,null,null,null,null,null,null,null,null,43]
[null,null,null,null,null,null,null,null,null,null,null,null,null,null,null,null,null,null,null,44]
[null,null,null,null,null,null,null,null,null,null,null,null,null,null,null,null,null,null,null,30]
[null,null,null,null,null,null,null,null,null,null,null,null,null,null,null,null,null,null,null,49]
[null,null,null,null,null,null,null,null,null,null,null,null,null,null,null,null,null,null,null,44]
[null,null,null,null,null,null,null,null,null,null,null,null,null,null,null,null,null,null,null,40]
[null,null,null,null,null,null,null,null,null,null,null,null,null,null,null,null,null,null,null,47]
[null,null,null,null,null,null,null,null,null,null,null,null,null,null,null,null,null,null,null,46]
[null,null,null,null,null,null,null,null,null,null,null,null,null,null,null,null,null,null,null,32]
[null,null,null,null,null,null,null,null,null,null,null,null,null,null,null,null,null,null,null,24]
[null,null,null,null,null,null,null,null,null,null,null,null,null,null,null,null,null,null,null,49]
[null,null,null,null,null,null,null,null,null,null,null,null,null,null,null,null,null,null,null,44]
[null,null,null,null,null,null,null,null,null,null,null,null,null,null,null,null,null,null,null,41]
[null,null,null,null,null,null,null,null,null,null,null,null,null,null,null,null,null,null,null,32]
[null,null,null,null,null,null,null,null,null,null,null,null,null,null,null,null,null,null,null,20]
[null,null,null,null,null,null,null,null,null,null,null,null,null,null,null,null,null,null,null,25]
[null,null,null,null,null,null,null,null,null,null,null,null,null,null,null,null,null,null,null,25]
[null,null,null,null,null,null,null,null,null,null,null,null,null,null,null,null,null,null,null,35]
[null,null,null,null,null,null,null,null,null,null,null,null,null,null,null,null,null,null,null,32]